fUSD/lending_fUSD_20251024
["ID","MTS","AMOUNT","RATE_DAILY","PERIOD"]
[392263262,1761291041669,-417.44174,0.00036742,30]
[392263265,1761291041678,-417.44174,0.00036742,30]
[392263267,1761291041687,-417.44174,0.00036742,30]
[392263268,1761291041696,-417.44174,0.00036742,30]
[392263270,1761291041705,-417.44174,0.00036742,30]
[392263271,1761291041715,-152.002984,0.00036742,30]
[392263273,1761291041724,-417.44174,0.00036742,30]
[392263275,1761291041733,-417.44174,0.00036742,30]
[392263276,1761291041743,-417.44174,0.00036742,30]
[392263278,1761291041752,-151.0,0.00036742,30]
[392263279,1761291041761,-417.44174,0.00036742,30]
[392263280,1761291041770,-156.41887,0.00036742,30]
[392263281,1761291041780,-151.0,0.00036742,30]
[392263282,1761291041789,-151.0,0.00036742,30]
[392263283,1761291041799,-151.0,0.00036742,30]
[392263284,1761291041808,-417.44174,0.00036742,30]
[392263285,1761291041817,-151.0,0.00036742,30]
[392263286,1761291041826,-151.0,0.00036742,30]
[392263287,1761291041836,-151.0,0.00036742,30]
[392263288,1761291041845,-417.44174,0.00036742,30]
[392263289,1761291041855,-417.44174,0.00036742,30]
[392263290,1761291041865,-160.101597,0.00036742,30]
[392263291,1761291041874,-151.0,0.00036742,30]
[392263292,1761291041886,-151.0,0.00036742,30]
[392263293,1761291041895,-151.0,0.00036742,30]
[392263294,1761291041905,-151.0,0.00036742,30]
[392263295,1761291041915,-151.0,0.00036742,30]
[392263296,1761291041928,-151.0,0.00036742,30]
[392263297,1761291041937,-437.57494,0.00036742,30]
[392263298,1761291041946,-437.57494,0.00036742,30]
[392263299,1761291041956,-437.57494,0.00036742,30]
[392263300,1761291041965,-437.57494,0.00036742,30]
[392263301,1761291041974,-437.57494,0.00036742,30]
[392263302,1761291041983,-437.57494,0.00036742,30]
[392263303,1761291041992,-202.06786,0.00036742,30]
[392263304,1761291042002,-437.57494,0.00036742,30]
[392263305,1761291042011,-437.57494,0.00036742,30]
[392263306,1761291042262,-437.57494,0.00036742,30]
[392263307,1761291042273,-506.902855,0.00036742,30]
[392263308,1761291042283,-506.902855,0.00036742,30]
[392263309,1761291042292,-437.57494,0.00036742,30]
[392263310,1761291042302,-506.902855,0.00036742,30]
[392263311,1761291042315,-437.57494,0.00036742,30]
[392263312,1761291042325,-437.57494,0.00036742,30]
[392263313,1761291042334,-506.902855,0.00036742,30]
[392263314,1761291042344,-506.902855,0.00036742,30]
[392263315,1761291042354,-506.902855,0.00036742,30]
[392263316,1761291042364,-506.902855,0.00036742,30]
[392263317,1761291042373,-506.902855,0.00036742,30]
[392263318,1761291042382,-506.902855,0.00036742,30]
[392263319,1761291042392,-506.902855,0.00036742,30]
[392263320,1761291042402,-506.902855,0.00036742,30]
[392263321,1761291042412,-151.0,0.00036742,30]
[392263322,1761291042422,-506.902855,0.00036742,30]
[392263323,1761291042431,-151.0,0.00036742,30]
[392263324,1761291042441,-151.0,0.00036742,30]
[392263325,1761291042450,-153.479678,0.00036742,30]
[392263326,1761291042459,-151.0,0.00036742,30]
[392263327,1761291042469,-151.0,0.00036742,30]
[392263328,1761291042479,-151.0,0.00036742,30]
[392263329,1761291042489,-151.0,0.00036742,30]
[392263330,1761291042499,-151.0,0.00036742,30]
[392263331,1761291042508,-151.0,0.00036742,30]
[392263332,1761291042517,-151.0,0.00036742,30]
[392263333,1761291042527,-151.0,0.00036742,30]
[392263334,1761291042536,-151.0,0.00036742,30]
[392263335,1761291042546,-151.0,0.00036742,30]
[392263336,1761291042555,-151.0,0.00036742,30]
[392263337,1761291042564,-151.0,0.00036742,30]
[392263338,1761291042574,-151.0,0.00036742,30]
[392263339,1761291042583,-151.0,0.00036742,30]
[392263340,1761291042592,-151.0,0.00036742,30]
[392263341,1761291042603,-151.0,0.00036742,30]
[392263342,1761291042611,-151.0,0.00036742,30]
[392263343,1761291042620,-151.0,0.00036742,30]
[392263344,1761291042629,-151.0,0.00036742,30]
[392263345,1761291042638,-203.90658,0.00036742,30]
[392263346,1761291042647,-151.0,0.00036742,30]
[392263347,1761291042656,-203.90658,0.00036742,30]
[392263348,1761291042665,-203.90658,0.00036742,30]
[392263349,1761291042674,-203.90658,0.00036742,30]
[392263350,1761291042683,-203.90658,0.00036742,30]
[392263351,1761291042698,-203.90658,0.00036742,30]
[392263352,1761291042708,-203.90658,0.00036742,30]
[392263353,1761291042717,-203.90658,0.00036742,30]
[392263354,1761291042726,-203.90658,0.00036742,30]
[392263355,1761291042735,-151.0,0.00036742,30]
[392263356,1761291042744,-151.0,0.00036742,30]
[392263357,1761291042753,-151.0,0.00036742,30]
[392263358,1761291042763,-151.0,0.00036742,30]
[392263359,1761291042772,-203.90658,0.00036742,30]
[392263360,1761291042781,-203.90658,0.00036742,30]
[392263361,1761291042791,-203.90658,0.00036742,30]
[392263362,1761291042800,-156.211195,0.00036742,30]
[392263363,1761291042810,-151.0,0.00036742,30]
[392263364,1761291042820,-151.0,0.00036742,30]
[392263365,1761291042829,-151.0,0.00036742,30]
[392263366,1761291042839,-151.0,0.00036742,30]
[392263367,1761291042848,-151.0,0.00036742,30]
[392263368,1761291042857,-151.0,0.00036742,30]
[392263369,1761291042866,-151.0,0.00036742,30]
[392263370,1761291042875,-151.0,0.00036742,30]
[392263371,1761291042884,-151.0,0.00036742,30]
[392263372,1761291042894,-151.0,0.00036742,30]
[392263373,1761291042903,-151.0,0.00036742,30]
[392263374,1761291042912,-151.0,0.00036742,30]
[392263375,1761291042926,-162.539405,0.00036742,30]
[392263376,1761291042935,-151.0,0.00036742,30]
[392263377,1761291042944,-155.523178,0.00036742,30]
[392263378,1761291042954,-162.539405,0.00036742,30]
[392263380,1761291042964,-151.0,0.00036742,30]
[392263381,1761291042973,-179.230443,0.00036742,30]
[392263382,1761291042983,-162.539405,0.00036742,30]
[392263383,1761291042992,-151.0,0.00036742,30]
[392263384,1761291043003,-162.539405,0.00036742,30]
[392263385,1761291043012,-152.097625,0.00036742,30]
[392263386,1761291043021,-151.0,0.00036742,30]
[392263387,1761291043030,-162.539405,0.00036742,30]
[392263388,1761291043040,-162.539405,0.00036742,30]
[392263389,1761291043050,-7864.270142,0.00036742,30]
[392263390,1761291043061,-272.198777,0.00036742,30]
[392263391,1761291043071,-7864.270142,0.00036742,30]
[392263392,1761291043080,-7864.270142,0.00036742,30]
[392263393,1761291043090,-162.539405,0.00036742,30]
[392263394,1761291043099,-151.0,0.00036742,30]
[392263395,1761291043109,-162.539405,0.00036742,30]
[392263397,1761291043118,-162.539405,0.00036742,30]
[392263400,1761291043127,-153.510727,0.00036742,30]
[392263402,1761291043137,-250.424314,0.00036742,30]
[392263404,1761291043149,-250.424314,0.00036742,30]
[392263406,1761291043159,-162.539405,0.00036742,30]
[392263407,1761291043169,-7864.270142,0.00036742,30]
[392263409,1761291043180,-162.539405,0.00036742,30]
[392263411,1761291043189,-7864.270142,0.00036742,30]
[392263413,1761291043198,-250.424314,0.00036742,30]
[392263414,1761291043208,-162.539405,0.00036742,30]
[392263415,1761291043218,-7864.270142,0.00036742,30]
[392263416,1761291043227,-250.424314,0.00036742,30]
[392263417,1761291043237,-250.424314,0.00036742,30]
[392263418,1761291043247,-7864.270142,0.00036742,30]
[392263419,1761291043256,-250.424314,0.00036742,30]
[392263420,1761291043266,-7864.270142,0.00036742,30]
[392263421,1761291043275,-7864.270142,0.00036742,30]
[392263422,1761291043285,-10043.48,0.00036742,30]
[392263423,1761291043294,-150.0,0.00036742,120]
[392263424,1761291043303,-150.0,0.00036742,120]
[392263425,1761291043312,-150.0,0.00036742,120]
[392263426,1761291043322,-150.0,0.00036742,120]
[392263427,1761291043332,-150.0,0.00036742,120]
[392263428,1761291043341,-150.0,0.00036742,120]
[392263429,1761291043350,-150.0,0.00036742,120]
[392263430,1761291043359,-150.0,0.00036742,120]
[392263431,1761291043368,-150.0,0.00036742,120]
[392263432,1761291043377,-150.0,0.00036742,120]
[392263433,1761291043389,-150.0,0.00036742,120]
[392263434,1761291043399,-150.0,0.00036742,120]
[392263435,1761291043408,-150.0,0.00036742,120]
[392263436,1761291043417,-150.0,0.00036742,120]
[392263437,1761291043426,-150.0,0.00036742,120]
[392263438,1761291043435,-150.0,0.00036742,120]
[392263439,1761291043444,-150.0,0.00036742,120]
[392263440,1761291043454,-1318455.94254157,0.00036742,2]
[392263441,1761291043464,-309.14897191,0.00036742,16]
[392263442,1761291043475,-15127.31174997,0.00036742,3]
[392263443,1761291043485,-11254.43767157,0.00036742,2]
[392263444,1761291043494,-58122.0249387,0.00036742,2]
[392263445,1761291043503,-278.38061352,0.00036742,2]
[392263446,1761291043512,-495.67080496,0.00036742,3]
[392263447,1761291043521,-239.78605418,0.00036742,3]
[392263448,1761291043530,-15769.30237295,0.00036742,2]
[392263449,1761291043539,-1863.46704841,0.00036742,2]
[392263450,1761291043548,-543.8414245,0.00036742,2]
[392263451,1761291043557,-1134.4968281,0.00036742,2]
[392263452,1761291043566,-2178.83218282,0.00036742,5]
[392263453,1761291043574,-1501.59963111,0.00036742,5]
[392263454,1761291043583,-408.62851779,0.00036742,2]
[392263455,1761291043592,-1504.94388959,0.00036742,2]
[392263456,1761291043601,-24743.74486505,0.00036742,2]
[392263457,1761291043610,-20572.93366995,0.00036742,2]
[392263458,1761291043619,-2475.34258008,0.00036742,2]
[392263459,1761291043628,-205.93061616,0.00036742,2]
[392263460,1761291043637,-876.45726366,0.00036742,2]
[392263461,1761291043646,-505.59527868,0.00036742,2]
[392263462,1761291043655,-287.09477558,0.00036742,2]
[392263463,1761291043665,-5773.42644789,0.00036742,2]
[392263464,1761291043677,-1130.56257031,0.00036742,2]
[392263465,1761291043687,-4649.45781158,0.00036742,2]
[392263466,1761291043697,-1050.29054362,0.00036742,2]
[392263467,1761291043707,-1716.46822014,0.00036742,2]
[392263468,1761291043716,-12814.02737037,0.00036742,2]
[392263469,1761291043725,-160.39684713,0.00036742,2]
[392263470,1761291043735,-464.96506262,0.00036742,120]
[392263471,1761291043744,-202.52369443,0.00036742,2]
[392263472,1761291043755,-754.0018488,0.00036742,2]
[392263473,1761291043767,-4266.0,0.00036742,2]
[392263474,1761291043777,-1341.01260163,0.00036742,2]
[392263475,1761291043787,-151.57536982,0.00036742,2]
[392263476,1761291043797,-184.73256924,0.00036742,2]
[392263477,1761291043808,-3355.97683585,0.00036742,2]
[392263478,1761291043817,-191.0,0.00036787,2]
[392263479,1761291043827,-400.0,0.000368,13]
[392263480,1761291043837,-908.69,0.000368,30]
[392263481,1761291043847,-1357.72,0.000368,14]
[392263482,1761291043858,-150.0,0.00036821,7]
[392263483,1761291043870,-18597.33229978,0.00036865,2]
[392263484,1761291043881,-794.0,0.00036888,2]
[392263485,1761291043892,-900.0,0.000369,13]
[392263486,1761291043903,-169.39,0.00036999,2]
[392263487,1761291043913,-191.0,0.00037032,2]
[392263488,1761291043927,-794.0,0.00037064,7]
[392263489,1761291043937,-150.0,0.00037075,7]
[392263490,1761291043949,-794.0,0.00037107,2]
[392263491,1761291043960,-150.0,0.00037244,7]
[392263492,1761291043971,-794.0,0.00037259,2]
[392263493,1761291043982,-794.0,0.00037268,2]
[392263494,1761291043993,-191.0,0.00037278,2]
[392263495,1761291044004,-151.0,0.00037318,14]
[392263496,1761291044013,-152.0,0.0003732,3]
[392263497,1761291044023,-151.0,0.00037321,30]
[392263498,1761291044033,-151.0,0.00037321,30]
[392263499,1761291044042,-228.086484,0.00037321,30]
[392263500,1761291044053,-257.177357,0.00037321,30]
[392263501,1761291044063,-257.177357,0.00037321,30]
[392263502,1761291044074,-257.177357,0.00037321,30]
[392263503,1761291044085,-151.0,0.00037321,30]
[392263504,1761291044097,-151.0,0.00037321,30]
[392263505,1761291044108,-482.94563,0.00037321,30]
[392263506,1761291044118,-151.0,0.00037321,30]
[392263507,1761291044127,-151.0,0.00037321,30]
[392263508,1761291044136,-151.0,0.00037321,30]
[392263509,1761291044145,-257.177357,0.00037321,30]
[392263510,1761291044156,-151.0,0.00037321,30]
[392263511,1761291044167,-482.94563,0.00037321,30]
[392263512,1761291044179,-151.0,0.00037321,30]
[392263513,1761291044190,-151.0,0.00037321,30]
[392263514,1761291044199,-720.557569,0.00037321,30]
[392263515,1761291044209,-151.0,0.00037321,30]
[392263516,1761291044219,-151.0,0.00037321,30]
[392263517,1761291044228,-151.0,0.00037321,30]
[392263518,1761291044238,-482.94563,0.00037321,30]
[392263519,1761291044247,-720.557569,0.00037321,30]
[392263520,1761291044257,-151.0,0.00037321,30]
[392263521,1761291044266,-151.0,0.00037321,30]
[392263522,1761291044275,-720.557569,0.00037321,30]
[392263523,1761291044285,-482.94563,0.00037321,30]
[392263524,1761291044294,-720.557569,0.00037321,30]
[392263525,1761291044303,-1208.740315,0.00037321,30]
[392263526,1761291044312,-1208.740315,0.00037321,30]
[392263527,1761291044322,-291.32004,0.00037321,30]
[392263528,1761291044331,-151.0,0.00037321,30]
[392263529,1761291044340,-1208.740315,0.00037321,30]
[392263530,1761291044349,-151.0,0.00037321,30]
[392263531,1761291044359,-291.32004,0.00037321,30]
[392263532,1761291044369,-1208.740315,0.00037321,30]
[392263533,1761291044379,-291.32004,0.00037321,30]
[392263534,1761291044388,-151.0,0.00037321,30]
[392263535,1761291044398,-291.32004,0.00037321,30]
[392263536,1761291044409,-151.0,0.00037321,30]
[392263537,1761291044420,-159.223497,0.00037321,30]
[392263538,1761291044430,-151.0,0.00037321,30]
[392263539,1761291044439,-151.0,0.00037321,30]
[392263540,1761291044448,-181.778693,0.00037321,30]
[392263541,1761291044458,-151.0,0.00037321,30]
[392263542,1761291044467,-151.0,0.00037321,30]
[392263543,1761291044479,-151.0,0.00037321,30]
[392263544,1761291044494,-151.0,0.00037321,30]
[392263545,1761291044511,-151.0,0.00037321,30]
[392263546,1761291044525,-151.0,0.00037321,30]
[392263547,1761291044538,-151.0,0.00037321,30]
[392263548,1761291044552,-390.861031,0.00037321,30]
[392263549,1761291044565,-390.861031,0.00037321,30]
[392263550,1761291044579,-390.861031,0.00037321,30]
[392263551,1761291044593,-603.310145,0.00037321,30]
[392263552,1761291044606,-390.861031,0.00037321,30]
[392263553,1761291044617,-603.310145,0.00037321,30]
[392263554,1761291044632,-603.310145,0.00037321,30]
[392263555,1761291044646,-603.310145,0.00037321,30]
[392263556,1761291044659,-151.0,0.00037321,30]
[392263557,1761291044672,-159.700649,0.00037321,30]
[392263558,1761291044686,-150.0,0.00037329,7]
[392263559,1761291044701,-794.0,0.00037351,2]
[392263560,1761291044715,-3899.68124,0.0003738,2]
[392263561,1761291044729,-794.0,0.00037434,2]
[392263562,1761291044743,-3899.68123,0.00037442,2]
[392263563,1761291044755,-794.0,0.00037455,120]
[392263564,1761291044769,-191.0,0.00037523,2]
[392263565,1761291044783,-18597.33229978,0.00037553,2]
[392263566,1761291044797,-150.0,0.00037583,7]
[392263567,1761291044810,-150.0,0.00037583,7]
[392263568,1761291044822,-191.0,0.00037769,2]
[392263569,1761291044835,-1357.72,0.000378,14]
[392263570,1761291044845,-461.61384217,0.00037802,6]
[392263571,1761291044859,-1060.13521159,0.00037802,6]
[392263572,1761291044876,-501.45754319,0.00037808,5]
[392263573,1761291044887,-503.60201775,0.00037808,5]
[392263574,1761291044898,-500.0,0.00037808,5]
[392263575,1761291044910,-500.0,0.00037808,5]
[392263576,1761291044925,-500.30913434,0.00037808,5]
[392263577,1761291044939,-500.0,0.00037808,5]
[392263578,1761291044950,-500.0,0.00037808,5]
[392263579,1761291044963,-500.0,0.00037808,5]
[392263580,1761291044977,-500.0,0.00037808,5]
[392263581,1761291044990,-360.43011227,0.00037808,5]
[392263582,1761291045005,-500.0,0.00037808,5]
[392263583,1761291045018,-500.0,0.00037808,5]
[392263584,1761291045030,-500.0,0.00037808,5]
[392263585,1761291045042,-150.0,0.00037837,7]
[392263586,1761291045056,-3899.68124,0.0003788,2]
[392263587,1761291045068,-794.0,0.00037882,120]
[392263588,1761291045079,-18698.5949527,0.00037891,3]
[392263589,1761291045091,-908.69,0.000379,30]
[392263590,1761291045108,-1300.0,0.000379,13]
[392263591,1761291045121,-150.0,0.00037921,7]
[392263592,1761291045133,-150.0,0.00037921,7]
[392263593,1761291045145,-18698.5949527,0.0003796,3]
[392263594,1761291045156,-151.0,0.0003797,30]
[392263595,1761291045169,-151.0,0.0003797,30]
[392263596,1761291045181,-151.0,0.0003797,30]
[392263597,1761291045193,-151.0,0.0003797,30]
[392263598,1761291045204,-151.0,0.0003797,30]
[392263599,1761291045216,-162.460301,0.0003797,30]
[392263600,1761291045228,-151.0,0.0003797,30]
[392263601,1761291045239,-151.0,0.0003797,30]
[392263602,1761291045252,-417.44174,0.0003797,30]
[392263603,1761291045265,-417.44174,0.0003797,30]
[392263604,1761291045277,-417.44174,0.0003797,30]
[392263605,1761291045289,-151.0,0.0003797,30]
[392263606,1761291045301,-151.0,0.0003797,30]
[392263607,1761291045313,-417.44174,0.0003797,30]
[392263608,1761291045323,-174.044366,0.0003797,30]
[392263609,1761291045335,-151.0,0.0003797,30]
[392263610,1761291045347,-437.57494,0.0003797,30]
[392263611,1761291045360,-437.57494,0.0003797,30]
[392263612,1761291045372,-437.57494,0.0003797,30]
[392263613,1761291045385,-506.902855,0.0003797,30]
[392263614,1761291045397,-437.57494,0.0003797,30]
[392263615,1761291045409,-506.902855,0.0003797,30]
[392263616,1761291045424,-506.902855,0.0003797,30]
[392263617,1761291045437,-506.902855,0.0003797,30]
[392263618,1761291045448,-246.415835,0.0003797,30]
[392263619,1761291045461,-151.0,0.0003797,30]
[392263620,1761291045472,-151.0,0.0003797,30]
[392263621,1761291045484,-151.0,0.0003797,30]
[392263622,1761291045497,-151.0,0.0003797,30]
[392263623,1761291045509,-151.0,0.0003797,30]
[392263624,1761291045522,-151.0,0.0003797,30]
[392263625,1761291045533,-203.90658,0.0003797,30]
[392263626,1761291045546,-203.90658,0.0003797,30]
[392263627,1761291045558,-203.90658,0.0003797,30]
[392263628,1761291045569,-151.0,0.0003797,30]
[392263629,1761291045581,-151.0,0.0003797,30]
[392263630,1761291045593,-203.90658,0.0003797,30]
[392263631,1761291045604,-151.0,0.0003797,30]
[392263632,1761291045618,-151.0,0.0003797,30]
[392263633,1761291045630,-151.0,0.0003797,30]
[392263634,1761291045642,-162.539405,0.0003797,30]
[392263635,1761291045653,-151.0,0.0003797,30]
[392263636,1761291045666,-162.539405,0.0003797,30]
[392263637,1761291045677,-162.539405,0.0003797,30]
[392263638,1761291045688,-7864.270142,0.0003797,30]
[392263639,1761291045699,-162.539405,0.0003797,30]
[392263640,1761291045711,-250.424314,0.0003797,30]
[392263641,1761291045722,-7864.270142,0.0003797,30]
[392263642,1761291045733,-250.424314,0.0003797,30]
[392263643,1761291045745,-191.0,0.00038014,2]
[392263644,1761291045757,-150.0,0.00038091,7]
[392263645,1761291045768,-726.67837332,0.000381,33]
[392263646,1761291045779,-18597.33229978,0.00038242,2]
[392263647,1761291045790,-191.0,0.0003826,2]
[392263648,1761291045801,-794.0,0.00038286,2]
[392263649,1761291045813,-150.0,0.00038345,7]
[392263650,1761291045826,-1000.0,0.00038356,5]
[392263651,1761291045841,-503.3380358,0.00038356,5]
[392263652,1761291045852,-1000.0,0.00038356,5]
[392263653,1761291045865,-531.68066942,0.00038356,5]
[392263654,1761291045877,-1000.0,0.00038356,5]
[392263655,1761291045888,-1000.0,0.00038356,5]
[392263656,1761291045900,-1000.0,0.00038356,5]
[392263657,1761291045912,-37397.1899053,0.00038357,3]
[392263658,1761291045929,-153.097572,0.00038367,120]
[392263659,1761291045941,-152.635899,0.00038367,120]
[392263661,1761291045952,-1030.438365,0.00038367,120]
[392263663,1761291045963,-4042.785528,0.00038367,120]
[392263665,1761291045982,-1030.438365,0.00038367,120]
[392263666,1761291046002,-151.0,0.00038367,120]
[392263667,1761291046017,-187.081224,0.00038367,120]
[392263668,1761291046033,-4042.785528,0.00038367,120]
[392263669,1761291046047,-151.0,0.00038367,30]
[392263670,1761291046062,-1030.438365,0.00038367,120]
[392263671,1761291046076,-151.0,0.00038367,120]
[392263672,1761291046090,-151.0,0.00038367,120]
[392263673,1761291046107,-1030.438365,0.00038367,120]
[392263674,1761291046123,-4042.785528,0.00038367,120]
[392263675,1761291046137,-151.0,0.00038367,120]
[392263676,1761291046149,-251.968229,0.00038367,120]
[392263677,1761291046163,-151.0,0.00038367,120]
[392263678,1761291046176,-4042.785528,0.00038367,120]
[392263679,1761291046189,-251.968229,0.00038367,120]
[392263680,1761291046202,-151.0,0.00038367,120]
[392263681,1761291046215,-251.968229,0.00038367,120]
[392263682,1761291046227,-251.968229,0.00038367,120]
[392263683,1761291046239,-151.0,0.00038367,120]
[392263684,1761291046251,-151.0,0.00038367,120]
[392263685,1761291046264,-151.0,0.00038367,120]
[392263686,1761291046277,-151.0,0.00038367,120]
[392263687,1761291046289,-151.0,0.00038367,120]
[392263690,1761291046302,-151.436349,0.00038367,120]
[392263692,1761291046315,-151.0,0.00038367,120]
[392263695,1761291046327,-151.0,0.00038367,120]
[392263697,1761291046339,-151.0,0.00038367,120]
[392263699,1761291046350,-151.0,0.00038367,120]
[392263701,1761291046363,-151.0,0.00038367,120]
[392263703,1761291046375,-151.0,0.00038367,120]
[392263704,1761291046388,-151.0,0.00038367,120]
[392263705,1761291046399,-151.0,0.00038367,120]
[392263706,1761291046411,-151.0,0.00038367,120]
[392263707,1761291046422,-151.0,0.00038367,120]
[392263708,1761291046434,-151.0,0.00038367,120]
[392263709,1761291046448,-151.0,0.00038367,120]
[392263710,1761291046460,-151.0,0.00038367,30]
[392263711,1761291046475,-151.0,0.00038367,120]
[392263712,1761291046494,-151.0,0.00038367,120]
[392263713,1761291046510,-151.0,0.00038367,30]
[392263714,1761291046525,-151.0,0.00038367,120]
[392263715,1761291046539,-151.0,0.00038367,120]
[392263716,1761291046552,-151.0,0.00038367,120]
[392263717,1761291046565,-153.170242,0.00038367,120]
[392263718,1761291046578,-156.210247,0.00038367,120]
[392263719,1761291046591,-151.0,0.00038367,120]
[392263720,1761291046604,-151.0,0.00038367,120]
[392263721,1761291046617,-197.474316,0.00038367,120]
[392263723,1761291046630,-151.0,0.00038367,120]
[392263726,1761291046642,-197.474316,0.00038367,120]
[392263728,1761291046655,-151.0,0.00038367,120]
[392263731,1761291046667,-151.0,0.00038367,120]
[392263733,1761291046680,-197.474316,0.00038367,120]
[392263735,1761291046692,-151.0,0.00038367,120]
[392263738,1761291046705,-151.0,0.00038367,120]
[392263740,1761291046718,-157.411087,0.00038367,120]
[392263741,1761291046731,-197.474316,0.00038367,120]
[392263743,1761291046744,-151.0,0.00038367,120]
[392263745,1761291046755,-567.151357,0.00038367,120]
[392263746,1761291046767,-151.0,0.00038367,120]
[392263747,1761291046780,-567.151357,0.00038367,120]
[392263748,1761291046792,-312.995953,0.00038367,120]
[392263749,1761291046804,-151.0,0.00038367,120]
[392263750,1761291046816,-567.151357,0.00038367,120]
[392263751,1761291046829,-312.995953,0.00038367,120]
[392263752,1761291046841,-151.0,0.00038367,120]
[392263753,1761291046853,-151.0,0.00038367,120]
[392263754,1761291046865,-567.151357,0.00038367,120]
[392263755,1761291046877,-312.995953,0.00038367,120]
[392263756,1761291046889,-151.0,0.00038367,120]
[392263757,1761291046902,-151.0,0.00038367,120]
[392263758,1761291046914,-312.995953,0.00038367,120]
[392263759,1761291046929,-151.0,0.00038367,120]
[392263760,1761291046940,-151.0,0.00038367,120]
[392263761,1761291046951,-151.0,0.00038367,120]
[392263762,1761291046963,-151.0,0.00038367,120]
[392263763,1761291046974,-151.0,0.00038367,120]
[392263764,1761291046990,-151.0,0.00038367,120]
[392263765,1761291047002,-151.0,0.00038367,120]
[392263766,1761291047014,-1360.39369,0.00038367,120]
[392263767,1761291047026,-1360.39369,0.00038367,120]
[392263768,1761291047037,-1360.39369,0.00038367,120]
[392263769,1761291047048,-151.0,0.00038367,120]
[392263770,1761291047066,-1360.39369,0.00038367,120]
[392263771,1761291047078,-257.177357,0.00038367,120]
[392263772,1761291047090,-257.177357,0.00038367,120]
[392263773,1761291047102,-151.0,0.00038367,120]
[392263774,1761291047115,-257.177357,0.00038367,120]
[392263775,1761291047127,-151.0,0.00038367,120]
[392263776,1761291047140,-482.94563,0.00038367,120]
[392263777,1761291047151,-151.0,0.00038367,120]
[392263778,1761291047161,-151.0,0.00038367,120]
[392263779,1761291047171,-151.0,0.00038367,120]
[392263780,1761291047181,-257.177357,0.00038367,120]
[392263781,1761291047190,-151.0,0.00038367,60]
[392263782,1761291047201,-482.94563,0.00038367,120]
[392263784,1761291047210,-151.0,0.00038367,120]
[392263785,1761291047220,-720.557569,0.00038367,120]
[392263786,1761291047627,-151.0,0.00038367,120]
[392263787,1761291047651,-151.0,0.00038367,120]
[392263788,1761291047675,-151.0,0.00038367,120]
[392263789,1761291047695,-482.94563,0.00038367,120]
[392263790,1761291047704,-266.204121,0.00038367,120]
[392263791,1761291047713,-720.557569,0.00038367,120]
[392263792,1761291047723,-151.0,0.00038367,120]
[392263793,1761291047733,-151.0,0.00038367,120]
[392263794,1761291047742,-720.557569,0.00038367,120]
[392263795,1761291047751,-482.94563,0.00038367,120]
[392263796,1761291047760,-720.557569,0.00038367,120]
[392263797,1761291047769,-1208.740315,0.00038367,30]
[392263798,1761291047778,-1208.740315,0.00038367,30]
[392263799,1761291047787,-291.32004,0.00038367,120]
[392263800,1761291047796,-153.36771,0.00038367,120]
[392263801,1761291047805,-151.0,0.00038367,120]
[392263802,1761291047814,-1208.740315,0.00038367,30]
[392263803,1761291047823,-291.32004,0.00038367,120]
[392263804,1761291047832,-1208.740315,0.00038367,30]